{"text_format":"2","workbook":"xlsx","n_sheets":1,"sheets":["Sheet1"],"not_rendered":{"charts":0,"images":0,"macros":0,"external_links":0,"defined_names":0,"comments":0,"pivot_tables":0},"unopened":[],"bounds":{"document_bytes":16777216,"sheet_cells":100000,"run_cost":"one","rows_first":2000,"rows_last":500,"rows_between":2000,"halvings":0,"cell_chars":16384,"cell_head_chars":4096},"cells_cut":0,"cells_raw":0,"read":"whole","date_system":"1900"}

{"sheet":"Sheet1","index":0,"n_rows":15,"n_cols":10,"rows_kept":15,"cut":false,"hidden":false,"merged":[]}
["amount","from_owner","to_owner","from_token_account","to_token_account","owner_count","gmgn_from","gmgn_to","url_from_ata","url_to_ata"]
["1e+07","681vLyzMJ6Uw5cyWHvBzmGWnbPV1QA4fEMvDs5suYqyg","ELeMLdqSaFF31SappKg4wrqBKmknguJrtAXRT8xbpWaP","GzWnrrDjU4bHczYRJ8cdxH2bjqsMhrhNk5RBYxtWgeBa","HSCn7TMgmkT5mNCVP7CN7owp9xRH2gZY6eRKnCg9QDYA",1,{"$f":"HYPERLINK(\"https://gmgn.ai/sol/token/4GULMPKBJLruChBZWksZzukAg1AjSCmCTMn9ny2Xpump?maker=681vLyzMJ6Uw5cyWHvBzmGWnbPV1QA4fEMvDs5suYqyg\",\"gmgn_681vLy\")","v":"gmgn_681vLy"},{"$f":"HYPERLINK(\"https://gmgn.ai/sol/token/4GULMPKBJLruChBZWksZzukAg1AjSCmCTMn9ny2Xpump?maker=ELeMLdqSaFF31SappKg4wrqBKmknguJrtAXRT8xbpWaP\",\"gmgn_ELeMLd\")","v":"gmgn_ELeMLd"},{"$f":"HYPERLINK(\"https://solscan.io/account/GzWnrrDjU4bHczYRJ8cdxH2bjqsMhrhNk5RBYxtWgeBa\",\"sol_GzWnrr\")","v":"sol_GzWnrr"},{"$f":"HYPERLINK(\"https://solscan.io/account/HSCn7TMgmkT5mNCVP7CN7owp9xRH2gZY6eRKnCg9QDYA\",\"sol_HSCn7T\")","v":"sol_HSCn7T"}]
["1.5e+07","6JxFjDw9EJUckkZU8eZGr5U6KPiJCY17HCmv6PHUPBpM","EeS7DBots7zF7JA4iCPun1uA779aXCPCBhe4kGkuCuRA","n4YNvPbmm5f9pHfw2rgbruSeezpWZL1se3NdAWbbzHy","9dnKxvrUrYrE1dbKcVm9zPUQjggXZDHnst4oz1iCEnSM",1,{"$f":"HYPERLINK(\"https://gmgn.ai/sol/token/4GULMPKBJLruChBZWksZzukAg1AjSCmCTMn9ny2Xpump?maker=6JxFjDw9EJUckkZU8eZGr5U6KPiJCY17HCmv6PHUPBpM\",\"gmgn_6JxFjD\")","v":"gmgn_6JxFjD"},{"$f":"HYPERLINK(\"https://gmgn.ai/sol/token/4GULMPKBJLruChBZWksZzukAg1AjSCmCTMn9ny2Xpump?maker=EeS7DBots7zF7JA4iCPun1uA779aXCPCBhe4kGkuCuRA\",\"gmgn_EeS7DB\")","v":"gmgn_EeS7DB"},{"$f":"HYPERLINK(\"https://solscan.io/account/n4YNvPbmm5f9pHfw2rgbruSeezpWZL1se3NdAWbbzHy\",\"sol_n4YNvP\")","v":"sol_n4YNvP"},{"$f":"HYPERLINK(\"https://solscan.io/account/9dnKxvrUrYrE1dbKcVm9zPUQjggXZDHnst4oz1iCEnSM\",\"sol_9dnKxv\")","v":"sol_9dnKxv"}]
["5e+06","8HWKSxun9CWhhmig7VnFS855jEqd7L3ZELEofVWHPiK1","AoK8RY5Qa2aqZDgHEgWkxVeQKTU6vAEQoYdFnRQ5nE59","FM638HhViSqRJreEhoVo4bhHrXahgWLFtztwmm7E5or1","3dhRw6MT8ySRHENV8Z4bCStVTPPgZw3Rg6wf2Pr6VTh7",1,{"$f":"HYPERLINK(\"https://gmgn.ai/sol/token/4GULMPKBJLruChBZWksZzukAg1AjSCmCTMn9ny2Xpump?maker=8HWKSxun9CWhhmig7VnFS855jEqd7L3ZELEofVWHPiK1\",\"gmgn_8HWKSx\")","v":"gmgn_8HWKSx"},{"$f":"HYPERLINK(\"https://gmgn.ai/sol/token/4GULMPKBJLruChBZWksZzukAg1AjSCmCTMn9ny2Xpump?maker=AoK8RY5Qa2aqZDgHEgWkxVeQKTU6vAEQoYdFnRQ5nE59\",\"gmgn_AoK8RY\")","v":"gmgn_AoK8RY"},{"$f":"HYPERLINK(\"https://solscan.io/account/FM638HhViSqRJreEhoVo4bhHrXahgWLFtztwmm7E5or1\",\"sol_FM638H\")","v":"sol_FM638H"},{"$f":"HYPERLINK(\"https://solscan.io/account/3dhRw6MT8ySRHENV8Z4bCStVTPPgZw3Rg6wf2Pr6VTh7\",\"sol_3dhRw6\")","v":"sol_3dhRw6"}]
["1e+07","9P9aULB7BGDaQSTpMpmMU6o6EkcDzVfS13s1VyzaiUFm","CZditmDZ9FPdygqDXCA3yhP3XoWyw2fhCTjt7egcgv3Q","2F3gES3KHDC7ac1KC5NBrR57ZVihLpaGYLwjD4TGKmeb","2PVRAhxhfKb7HcnhT4a6jQ9tgD1F4nubyWJe9J3f8bcw",1,{"$f":"HYPERLINK(\"https://gmgn.ai/sol/token/4GULMPKBJLruChBZWksZzukAg1AjSCmCTMn9ny2Xpump?maker=9P9aULB7BGDaQSTpMpmMU6o6EkcDzVfS13s1VyzaiUFm\",\"gmgn_9P9aUL\")","v":"gmgn_9P9aUL"},{"$f":"HYPERLINK(\"https://gmgn.ai/sol/token/4GULMPKBJLruChBZWksZzukAg1AjSCmCTMn9ny2Xpump?maker=CZditmDZ9FPdygqDXCA3yhP3XoWyw2fhCTjt7egcgv3Q\",\"gmgn_CZditm\")","v":"gmgn_CZditm"},{"$f":"HYPERLINK(\"https://solscan.io/account/2F3gES3KHDC7ac1KC5NBrR57ZVihLpaGYLwjD4TGKmeb\",\"sol_2F3gES\")","v":"sol_2F3gES"},{"$f":"HYPERLINK(\"https://solscan.io/account/2PVRAhxhfKb7HcnhT4a6jQ9tgD1F4nubyWJe9J3f8bcw\",\"sol_2PVRAh\")","v":"sol_2PVRAh"}]
["5e+06","9gpss8bMuEA5jfunfL3eCDJNZ5fpc3vY2phWFKpr1YwR","8HWKSxun9CWhhmig7VnFS855jEqd7L3ZELEofVWHPiK1","CwozM9Ew3ae7KvDdKHaqp3FyenC2GPRVF8pYti2NZB7P","FM638HhViSqRJreEhoVo4bhHrXahgWLFtztwmm7E5or1",1,{"$f":"HYPERLINK(\"https://gmgn.ai/sol/token/4GULMPKBJLruChBZWksZzukAg1AjSCmCTMn9ny2Xpump?maker=9gpss8bMuEA5jfunfL3eCDJNZ5fpc3vY2phWFKpr1YwR\",\"gmgn_9gpss8\")","v":"gmgn_9gpss8"},{"$f":"HYPERLINK(\"https://gmgn.ai/sol/token/4GULMPKBJLruChBZWksZzukAg1AjSCmCTMn9ny2Xpump?maker=8HWKSxun9CWhhmig7VnFS855jEqd7L3ZELEofVWHPiK1\",\"gmgn_8HWKSx\")","v":"gmgn_8HWKSx"},{"$f":"HYPERLINK(\"https://solscan.io/account/CwozM9Ew3ae7KvDdKHaqp3FyenC2GPRVF8pYti2NZB7P\",\"sol_CwozM9\")","v":"sol_CwozM9"},{"$f":"HYPERLINK(\"https://solscan.io/account/FM638HhViSqRJreEhoVo4bhHrXahgWLFtztwmm7E5or1\",\"sol_FM638H\")","v":"sol_FM638H"}]
["5e+06","AoK8RY5Qa2aqZDgHEgWkxVeQKTU6vAEQoYdFnRQ5nE59","D3UXTqkr713hjAt5f6At3B5HEucrBGgXnmbV8CKba24i","3dhRw6MT8ySRHENV8Z4bCStVTPPgZw3Rg6wf2Pr6VTh7","8tMXovFkffLv1pZWYH6fVP88VJmkPLsZdasMSvY5YsGR",1,{"$f":"HYPERLINK(\"https://gmgn.ai/sol/token/4GULMPKBJLruChBZWksZzukAg1AjSCmCTMn9ny2Xpump?maker=AoK8RY5Qa2aqZDgHEgWkxVeQKTU6vAEQoYdFnRQ5nE59\",\"gmgn_AoK8RY\")","v":"gmgn_AoK8RY"},{"$f":"HYPERLINK(\"https://gmgn.ai/sol/token/4GULMPKBJLruChBZWksZzukAg1AjSCmCTMn9ny2Xpump?maker=D3UXTqkr713hjAt5f6At3B5HEucrBGgXnmbV8CKba24i\",\"gmgn_D3UXTq\")","v":"gmgn_D3UXTq"},{"$f":"HYPERLINK(\"https://solscan.io/account/3dhRw6MT8ySRHENV8Z4bCStVTPPgZw3Rg6wf2Pr6VTh7\",\"sol_3dhRw6\")","v":"sol_3dhRw6"},{"$f":"HYPERLINK(\"https://solscan.io/account/8tMXovFkffLv1pZWYH6fVP88VJmkPLsZdasMSvY5YsGR\",\"sol_8tMXov\")","v":"sol_8tMXov"}]
["1e+07","B1ThogbCKsFEmvR4Y3vsUwcJheiLXW5qbjfWqBNsLUZn","EeS7DBots7zF7JA4iCPun1uA779aXCPCBhe4kGkuCuRA","6TsvU8bXdp35BKm2L9wZHY1v93d7KezoFsAgwGpW2JBu","9dnKxvrUrYrE1dbKcVm9zPUQjggXZDHnst4oz1iCEnSM",1,{"$f":"HYPERLINK(\"https://gmgn.ai/sol/token/4GULMPKBJLruChBZWksZzukAg1AjSCmCTMn9ny2Xpump?maker=B1ThogbCKsFEmvR4Y3vsUwcJheiLXW5qbjfWqBNsLUZn\",\"gmgn_B1Thog\")","v":"gmgn_B1Thog"},{"$f":"HYPERLINK(\"https://gmgn.ai/sol/token/4GULMPKBJLruChBZWksZzukAg1AjSCmCTMn9ny2Xpump?maker=EeS7DBots7zF7JA4iCPun1uA779aXCPCBhe4kGkuCuRA\",\"gmgn_EeS7DB\")","v":"gmgn_EeS7DB"},{"$f":"HYPERLINK(\"https://solscan.io/account/6TsvU8bXdp35BKm2L9wZHY1v93d7KezoFsAgwGpW2JBu\",\"sol_6TsvU8\")","v":"sol_6TsvU8"},{"$f":"HYPERLINK(\"https://solscan.io/account/9dnKxvrUrYrE1dbKcVm9zPUQjggXZDHnst4oz1iCEnSM\",\"sol_9dnKxv\")","v":"sol_9dnKxv"}]
["5e+06","BxLrFCW9i6PesGYhX2pmDYxLy9bjWomtbu54dV7JvU77","D3UXTqkr713hjAt5f6At3B5HEucrBGgXnmbV8CKba24i","3XvWP8jRg95EsHnTMTwxrx5kxBB5wrRXJPogGvcvD2Zd","8tMXovFkffLv1pZWYH6fVP88VJmkPLsZdasMSvY5YsGR",2,{"$f":"HYPERLINK(\"https://gmgn.ai/sol/token/4GULMPKBJLruChBZWksZzukAg1AjSCmCTMn9ny2Xpump?maker=BxLrFCW9i6PesGYhX2pmDYxLy9bjWomtbu54dV7JvU77\",\"gmgn_BxLrFC\")","v":"gmgn_BxLrFC"},{"$f":"HYPERLINK(\"https://gmgn.ai/sol/token/4GULMPKBJLruChBZWksZzukAg1AjSCmCTMn9ny2Xpump?maker=D3UXTqkr713hjAt5f6At3B5HEucrBGgXnmbV8CKba24i\",\"gmgn_D3UXTq\")","v":"gmgn_D3UXTq"},{"$f":"HYPERLINK(\"https://solscan.io/account/3XvWP8jRg95EsHnTMTwxrx5kxBB5wrRXJPogGvcvD2Zd\",\"sol_3XvWP8\")","v":"sol_3XvWP8"},{"$f":"HYPERLINK(\"https://solscan.io/account/8tMXovFkffLv1pZWYH6fVP88VJmkPLsZdasMSvY5YsGR\",\"sol_8tMXov\")","v":"sol_8tMXov"}]
["1e+07","CZditmDZ9FPdygqDXCA3yhP3XoWyw2fhCTjt7egcgv3Q","J2ijoouRw5qgqiGkcKYVYBcB3RdxxiKJzr2PV3eCJFbr","2PVRAhxhfKb7HcnhT4a6jQ9tgD1F4nubyWJe9J3f8bcw","5SDQoYkriMj7LJpLEPjUmFi3pWYK4DQjMQi3my5N3bZV",1,{"$f":"HYPERLINK(\"https://gmgn.ai/sol/token/4GULMPKBJLruChBZWksZzukAg1AjSCmCTMn9ny2Xpump?maker=CZditmDZ9FPdygqDXCA3yhP3XoWyw2fhCTjt7egcgv3Q\",\"gmgn_CZditm\")","v":"gmgn_CZditm"},{"$f":"HYPERLINK(\"https://gmgn.ai/sol/token/4GULMPKBJLruChBZWksZzukAg1AjSCmCTMn9ny2Xpump?maker=J2ijoouRw5qgqiGkcKYVYBcB3RdxxiKJzr2PV3eCJFbr\",\"gmgn_J2ijoo\")","v":"gmgn_J2ijoo"},{"$f":"HYPERLINK(\"https://solscan.io/account/2PVRAhxhfKb7HcnhT4a6jQ9tgD1F4nubyWJe9J3f8bcw\",\"sol_2PVRAh\")","v":"sol_2PVRAh"},{"$f":"HYPERLINK(\"https://solscan.io/account/5SDQoYkriMj7LJpLEPjUmFi3pWYK4DQjMQi3my5N3bZV\",\"sol_5SDQoY\")","v":"sol_5SDQoY"}]
["1.5e+07","D3UXTqkr713hjAt5f6At3B5HEucrBGgXnmbV8CKba24i","6JxFjDw9EJUckkZU8eZGr5U6KPiJCY17HCmv6PHUPBpM","8tMXovFkffLv1pZWYH6fVP88VJmkPLsZdasMSvY5YsGR","n4YNvPbmm5f9pHfw2rgbruSeezpWZL1se3NdAWbbzHy",1,{"$f":"HYPERLINK(\"https://gmgn.ai/sol/token/4GULMPKBJLruChBZWksZzukAg1AjSCmCTMn9ny2Xpump?maker=D3UXTqkr713hjAt5f6At3B5HEucrBGgXnmbV8CKba24i\",\"gmgn_D3UXTq\")","v":"gmgn_D3UXTq"},{"$f":"HYPERLINK(\"https://gmgn.ai/sol/token/4GULMPKBJLruChBZWksZzukAg1AjSCmCTMn9ny2Xpump?maker=6JxFjDw9EJUckkZU8eZGr5U6KPiJCY17HCmv6PHUPBpM\",\"gmgn_6JxFjD\")","v":"gmgn_6JxFjD"},{"$f":"HYPERLINK(\"https://solscan.io/account/8tMXovFkffLv1pZWYH6fVP88VJmkPLsZdasMSvY5YsGR\",\"sol_8tMXov\")","v":"sol_8tMXov"},{"$f":"HYPERLINK(\"https://solscan.io/account/n4YNvPbmm5f9pHfw2rgbruSeezpWZL1se3NdAWbbzHy\",\"sol_n4YNvP\")","v":"sol_n4YNvP"}]
["1e+07","EeS7DBots7zF7JA4iCPun1uA779aXCPCBhe4kGkuCuRA","681vLyzMJ6Uw5cyWHvBzmGWnbPV1QA4fEMvDs5suYqyg","9dnKxvrUrYrE1dbKcVm9zPUQjggXZDHnst4oz1iCEnSM","GzWnrrDjU4bHczYRJ8cdxH2bjqsMhrhNk5RBYxtWgeBa",1,{"$f":"HYPERLINK(\"https://gmgn.ai/sol/token/4GULMPKBJLruChBZWksZzukAg1AjSCmCTMn9ny2Xpump?maker=EeS7DBots7zF7JA4iCPun1uA779aXCPCBhe4kGkuCuRA\",\"gmgn_EeS7DB\")","v":"gmgn_EeS7DB"},{"$f":"HYPERLINK(\"https://gmgn.ai/sol/token/4GULMPKBJLruChBZWksZzukAg1AjSCmCTMn9ny2Xpump?maker=681vLyzMJ6Uw5cyWHvBzmGWnbPV1QA4fEMvDs5suYqyg\",\"gmgn_681vLy\")","v":"gmgn_681vLy"},{"$f":"HYPERLINK(\"https://solscan.io/account/9dnKxvrUrYrE1dbKcVm9zPUQjggXZDHnst4oz1iCEnSM\",\"sol_9dnKxv\")","v":"sol_9dnKxv"},{"$f":"HYPERLINK(\"https://solscan.io/account/GzWnrrDjU4bHczYRJ8cdxH2bjqsMhrhNk5RBYxtWgeBa\",\"sol_GzWnrr\")","v":"sol_GzWnrr"}]
["1e+07","EkoZiPdDYiJTub4PhCZusWDujqgRSri1Euno7wp1MtyQ","B1ThogbCKsFEmvR4Y3vsUwcJheiLXW5qbjfWqBNsLUZn","DdXTtKGzFJ5Yekky7Nfo1qHEU9W8KvC12kHKTc5ciaMQ","6TsvU8bXdp35BKm2L9wZHY1v93d7KezoFsAgwGpW2JBu",1,{"$f":"HYPERLINK(\"https://gmgn.ai/sol/token/4GULMPKBJLruChBZWksZzukAg1AjSCmCTMn9ny2Xpump?maker=EkoZiPdDYiJTub4PhCZusWDujqgRSri1Euno7wp1MtyQ\",\"gmgn_EkoZiP\")","v":"gmgn_EkoZiP"},{"$f":"HYPERLINK(\"https://gmgn.ai/sol/token/4GULMPKBJLruChBZWksZzukAg1AjSCmCTMn9ny2Xpump?maker=B1ThogbCKsFEmvR4Y3vsUwcJheiLXW5qbjfWqBNsLUZn\",\"gmgn_B1Thog\")","v":"gmgn_B1Thog"},{"$f":"HYPERLINK(\"https://solscan.io/account/DdXTtKGzFJ5Yekky7Nfo1qHEU9W8KvC12kHKTc5ciaMQ\",\"sol_DdXTtK\")","v":"sol_DdXTtK"},{"$f":"HYPERLINK(\"https://solscan.io/account/6TsvU8bXdp35BKm2L9wZHY1v93d7KezoFsAgwGpW2JBu\",\"sol_6TsvU8\")","v":"sol_6TsvU8"}]
["1e+07","Fkrbt2h2xS9H75GQfepygf3vv9NctH1ccX3eaw3Wnbe5","9P9aULB7BGDaQSTpMpmMU6o6EkcDzVfS13s1VyzaiUFm","Fw4AjEZ5HLCsmYSSDw77cbriXuCSejgQFr2GCq41Mjvm","2F3gES3KHDC7ac1KC5NBrR57ZVihLpaGYLwjD4TGKmeb",1,{"$f":"HYPERLINK(\"https://gmgn.ai/sol/token/4GULMPKBJLruChBZWksZzukAg1AjSCmCTMn9ny2Xpump?maker=Fkrbt2h2xS9H75GQfepygf3vv9NctH1ccX3eaw3Wnbe5\",\"gmgn_Fkrbt2\")","v":"gmgn_Fkrbt2"},{"$f":"HYPERLINK(\"https://gmgn.ai/sol/token/4GULMPKBJLruChBZWksZzukAg1AjSCmCTMn9ny2Xpump?maker=9P9aULB7BGDaQSTpMpmMU6o6EkcDzVfS13s1VyzaiUFm\",\"gmgn_9P9aUL\")","v":"gmgn_9P9aUL"},{"$f":"HYPERLINK(\"https://solscan.io/account/Fw4AjEZ5HLCsmYSSDw77cbriXuCSejgQFr2GCq41Mjvm\",\"sol_Fw4AjE\")","v":"sol_Fw4AjE"},{"$f":"HYPERLINK(\"https://solscan.io/account/2F3gES3KHDC7ac1KC5NBrR57ZVihLpaGYLwjD4TGKmeb\",\"sol_2F3gES\")","v":"sol_2F3gES"}]
["5e+06","J2ijoouRw5qgqiGkcKYVYBcB3RdxxiKJzr2PV3eCJFbr","D3UXTqkr713hjAt5f6At3B5HEucrBGgXnmbV8CKba24i","5SDQoYkriMj7LJpLEPjUmFi3pWYK4DQjMQi3my5N3bZV","8tMXovFkffLv1pZWYH6fVP88VJmkPLsZdasMSvY5YsGR",1,{"$f":"HYPERLINK(\"https://gmgn.ai/sol/token/4GULMPKBJLruChBZWksZzukAg1AjSCmCTMn9ny2Xpump?maker=J2ijoouRw5qgqiGkcKYVYBcB3RdxxiKJzr2PV3eCJFbr\",\"gmgn_J2ijoo\")","v":"gmgn_J2ijoo"},{"$f":"HYPERLINK(\"https://gmgn.ai/sol/token/4GULMPKBJLruChBZWksZzukAg1AjSCmCTMn9ny2Xpump?maker=D3UXTqkr713hjAt5f6At3B5HEucrBGgXnmbV8CKba24i\",\"gmgn_D3UXTq\")","v":"gmgn_D3UXTq"},{"$f":"HYPERLINK(\"https://solscan.io/account/5SDQoYkriMj7LJpLEPjUmFi3pWYK4DQjMQi3my5N3bZV\",\"sol_5SDQoY\")","v":"sol_5SDQoY"},{"$f":"HYPERLINK(\"https://solscan.io/account/8tMXovFkffLv1pZWYH6fVP88VJmkPLsZdasMSvY5YsGR\",\"sol_8tMXov\")","v":"sol_8tMXov"}]